fUSD/lending_fUSD_20250104
["ID","MTS","AMOUNT","RATE_DAILY","PERIOD"]
[347617174,1735959032295,-100.84390157,8.844e-05,2]
[347617175,1735959032305,-200.69271058,9.918e-05,2]
[347617176,1735959032314,-127.67360212,9.937e-05,2]
[347617177,1735959032325,-73.01910846,9.937e-05,2]
[347617178,1735959032335,-500.0,9.973e-05,2]
[347617179,1735959032344,-385.45569982,9.999e-05,2]
[347617180,1735959032398,-114.54430018,9.999e-05,2]
[347617181,1735959032408,-500.0,9.999e-05,2]
[347617182,1735959032418,-500.0,9.999e-05,2]
[347617183,1735959032427,-500.0,9.999e-05,2]
[347617184,1735959032436,-312.90405131,9.999e-05,2]
[347617185,1735959032446,-500.0,9.999e-05,2]
[347617186,1735959032455,-500.0,9.999e-05,2]
[347617187,1735959032464,-200.6927106,9.999e-05,2]
[347617188,1735959032474,-519.16974144,9.999e-05,2]
[347617189,1735959032483,-890.74,9.999e-05,2]
[347617190,1735959032492,-941.97,9.999e-05,2]
[347617191,1735959032501,-500.0,9.999e-05,2]
[347617192,1735959032511,-500.0,9.999e-05,2]
[347617193,1735959032520,-879.36,9.999e-05,2]
[347617194,1735959032530,-500.0,9.999e-05,2]
[347617195,1735959032539,-500.0,9.999e-05,2]
[347617196,1735959032548,-1039.83,9.999e-05,2]
[347617197,1735959032558,-500.0,9.999e-05,2]
[347617198,1735959032566,-500.0,9.999e-05,2]
[347617199,1735959032575,-500.0,9.999e-05,2]
[347617200,1735959032585,-506.30040976,9.999e-05,2]
[347617201,1735959032594,-504.50127141,9.999e-05,2]
[347617203,1735959032603,-500.0,9.999e-05,2]
[347617205,1735959032613,-500.0,9.999e-05,2]
[347617207,1735959032622,-503.20971533,9.999e-05,2]
[347617209,1735959032632,-648.28,9.999e-05,2]
[347617211,1735959032642,-496.07055724,9.999e-05,2]
[347617214,1735959032652,-318134.33084191,0.0001,2]
[347617216,1735959032664,-744.9404301,0.0001,2]
[347617217,1735959032675,-1461.29771411,0.0001,2]
[347617218,1735959032686,-350.8690286,0.0001,2]
[347617219,1735959032696,-696.11325729,0.0001,2]
[347617223,1735959038225,-511.12870729,9.999e-05,2]
[347617224,1735959038234,-695.0,9.999e-05,2]
[347617225,1735959038244,-6293.87129271,0.0001,2]
[347617226,1735959038256,-467.52,0.0001,2]
[347617227,1735959038648,-500.0,9.999e-05,2]
[347617229,1735959038659,-102653.0838849,0.0001,2]
[347617231,1735959038671,-291.10604178,0.0001,2]
[347617233,1735959040179,-783.44824385,0.0001,2]
[347617235,1735959040412,-1651.69170802,0.0001,2]
[347617236,1735959040424,-4740.1001,0.0001,2]
[347617237,1735959040435,-5391.25861453,0.0001,2]
[347617238,1735959040447,-1737.2830917,0.0001,2]
[347617239,1735959040458,-4062.34949124,0.0001,2]
[347617240,1735959040469,-779.10654507,0.0001,2]
[347617241,1735959040480,-2942.42158914,0.0001,2]
[347617242,1735959040492,-420.69050019,0.0001,2]
[347617243,1735959040503,-642.97607776,0.0001,2]
[347617244,1735959040515,-1942.29166511,0.0001,2]
[347617264,1735959043637,-476.67811274,9.999e-05,2]
[347617265,1735959043649,-23.32188726,9.999e-05,2]
[347617266,1735959043659,-451.66353874,0.0001,2]
[347617267,1735959043671,-547.85,0.0001,2]
[347617268,1735959043682,-562.65041308,0.0001,2]
[347617269,1735959043694,-9311.04221422,0.0001,2]
[347617270,1735959046259,-3083.90522919,0.0001,2]
[347617271,1735959046270,-653.69470416,0.0001,2]
[347617272,1735959046282,-1272.53347259,0.0001,2]
[347617273,1735959046294,-270.775,0.0001,2]
[347617274,1735959046306,-418.66907585,0.0001,2]
[347617275,1735959046447,-2237.5706435,0.0001,2]
[347617279,1735959199005,8976.0,0.0002,120]
[347617289,1735960160132,-263.08159718,8.219e-05,2]
[347617308,1735960232394,-169.55840282,8.219e-05,2]
[347617309,1735960232404,-130.43159718,9.298e-05,2]
[347617310,1735960232417,-1736.68840282,9.298e-05,2]
[347617311,1735960232426,-342.45,9.332e-05,2]
[347617312,1735960232437,-250.0,9.368e-05,2]
[347617313,1735960232446,-512.93,9.426e-05,2]
[347617314,1735960232456,-250.0,9.473e-05,2]
[347617315,1735960232466,-207.92573931,9.473e-05,2]
[347617316,1735960232476,-1000.0,9.473e-05,2]
[347617317,1735960232485,-403.29,9.59e-05,2]
[347617318,1735960232494,-187.52,9.641e-05,2]
[347617319,1735960232504,-165.03,9.736e-05,2]
[347617320,1735960232514,-170.37,9.811e-05,2]
[347617321,1735960232523,-2008.14,9.9e-05,2]
[347617322,1735960232532,-504.17153563,9.973e-05,2]
[347617323,1735960232542,-500.0,9.973e-05,2]
[347617324,1735960232553,-300.0,9.998e-05,2]
[347617325,1735960232563,-500.0,9.999e-05,2]
[347617326,1735960232572,-500.0,9.999e-05,2]
[347617327,1735960232582,-500.0,9.999e-05,2]
[347617328,1735960232591,-500.92934479,9.999e-05,2]
[347617329,1735960232601,-500.0,9.999e-05,2]
[347617330,1735960232610,-500.0,9.999e-05,2]
[347617331,1735960232620,-500.0,9.999e-05,2]
[347617332,1735960232631,-500.0,9.999e-05,2]
[347617333,1735960232640,-503.10840816,9.999e-05,7]
[347617334,1735960232650,-500.0,9.999e-05,2]
[347617335,1735960232660,-500.0,9.999e-05,2]
[347617336,1735960232672,-500.0,9.999e-05,2]
[347617337,1735960232684,-500.0,9.999e-05,2]
[347617338,1735960232693,-500.0,9.999e-05,2]
[347617339,1735960232703,-500.0,9.999e-05,2]
[347617340,1735960232713,-500.0,9.999e-05,2]
[347617341,1735960232723,-500.0,9.999e-05,2]
[347617342,1735960232733,-500.8735092,9.999e-05,2]
[347617343,1735960232742,-500.0,9.999e-05,2]
[347617344,1735960232752,-500.0,9.999e-05,2]
[347617345,1735960232761,-411.9979041,9.999e-05,2]
[347617346,1735960232771,-500.0,9.999e-05,2]
[347617347,1735960232780,-500.0,9.999e-05,2]
[347617348,1735960232790,-500.0,9.999e-05,2]
[347617349,1735960232800,-500.0,9.999e-05,2]
[347617350,1735960232809,-500.0,9.999e-05,2]
[347617351,1735960232819,-501.05576208,9.999e-05,2]
[347617352,1735960232830,-500.0,9.999e-05,2]
[347617353,1735960232839,-500.0,9.999e-05,2]
[347617354,1735960232849,-500.0,9.999e-05,2]
[347617355,1735960232860,-501.00323304,9.999e-05,2]
[347617356,1735960232869,-500.0,9.999e-05,2]
[347617357,1735960232879,-500.0,9.999e-05,2]
[347617358,1735960232889,-500.0,9.999e-05,2]
[347617359,1735960232899,-500.0,9.999e-05,2]
[347617360,1735960232908,-501.14746459,9.999e-05,2]
[347617361,1735960232918,-500.0,9.999e-05,2]
[347617362,1735960232928,-500.0,9.999e-05,2]
[347617363,1735960232937,-500.0,9.999e-05,2]
[347617364,1735960232947,-502.43237975,9.999e-05,2]
[347617365,1735960232957,-500.0,9.999e-05,2]
[347617366,1735960232966,-501.6807736,9.999e-05,2]
[347617367,1735960232977,-500.0,9.999e-05,2]
[347617368,1735960232986,-500.0,9.999e-05,2]
[347617369,1735960232996,-505.56681901,9.999e-05,2]
[347617370,1735960233005,-500.0,9.999e-05,2]
[347617371,1735960233015,-500.0,9.999e-05,2]
[347617372,1735960233024,-506.6663359,9.999e-05,2]
[347617373,1735960233034,-500.0,9.999e-05,2]
[347617374,1735960233044,-500.0,9.999e-05,2]
[347617375,1735960233053,-500.0,9.999e-05,2]
[347617376,1735960233063,-500.0,9.999e-05,2]
[347617377,1735960233073,-500.0,9.999e-05,2]
[347617378,1735960233083,-503.23516485,9.999e-05,2]
[347617379,1735960233093,-500.0,9.999e-05,2]
[347617380,1735960233103,-500.0,9.999e-05,2]
[347617381,1735960233114,-500.0,9.999e-05,2]
[347617382,1735960233124,-501.70093396,9.999e-05,2]
[347617383,1735960233134,-500.0,9.999e-05,2]
[347617384,1735960233144,-500.0,9.999e-05,2]
[347617385,1735960233154,-500.0,9.999e-05,2]
[347617386,1735960233164,-501.57598058,9.999e-05,2]
[347617387,1735960233177,-500.0,9.999e-05,2]
[347617388,1735960233187,-500.0,9.999e-05,2]
[347617389,1735960233197,-507.72618881,9.999e-05,2]
[347617390,1735960233206,-464.18389142,9.999e-05,2]
[347617391,1735960233216,-500.0,9.999e-05,2]
[347617392,1735960233226,-340.738476,9.999e-05,2]
[347617393,1735960233236,-500.0,9.999e-05,2]
[347617394,1735960233246,-500.0,9.999e-05,2]
[347617395,1735960233256,-1659.46,9.999e-05,2]
[347617396,1735960233267,-500.0,9.999e-05,2]
[347617397,1735960233276,-500.0,9.999e-05,2]
[347617398,1735960233287,-254.211599,9.999e-05,2]
[347617399,1735960233296,-500.0,9.999e-05,2]
[347617400,1735960233306,-500.0,9.999e-05,2]
[347617401,1735960233316,-500.0,9.999e-05,2]
[347617404,1735960233326,-500.0,9.999e-05,2]
[347617407,1735960233335,-500.0,9.999e-05,2]
[347617409,1735960233345,-4554.98,9.999e-05,2]
[347617410,1735960233355,-500.0,9.999e-05,2]
[347617411,1735960233364,-500.0,9.999e-05,2]
[347617412,1735960233374,-548.6,9.999e-05,2]
[347617413,1735960233383,-438.94858891,9.999e-05,2]
[347617414,1735960233393,-500.0,9.999e-05,2]
[347617415,1735960233403,-500.0,9.999e-05,2]
[347617416,1735960233413,-527.49,9.999e-05,2]
[347617417,1735960233424,-500.0,9.999e-05,2]
[347617418,1735960233434,-500.0,9.999e-05,2]
[347617419,1735960233443,-500.0,9.999e-05,2]
[347617420,1735960233454,-500.0,9.999e-05,2]
[347617421,1735960233464,-500.0,9.999e-05,2]
[347617422,1735960233474,-500.0,9.999e-05,2]
[347617423,1735960233484,-500.0,9.999e-05,2]
[347617424,1735960233493,-500.0,9.999e-05,2]
[347617425,1735960233503,-500.0,9.999e-05,2]
[347617426,1735960233513,-500.0,9.999e-05,2]
[347617427,1735960233522,-500.0,9.999e-05,2]
[347617428,1735960233532,-500.0,9.999e-05,2]
[347617429,1735960233542,-2078.56,9.999e-05,2]
[347617430,1735960233552,-812.63,9.999e-05,2]
[347617431,1735960233562,-500.0,9.999e-05,2]
[347617432,1735960233572,-500.0,9.999e-05,2]
[347617433,1735960233581,-640.18,9.999e-05,2]
[347617434,1735960233591,-500.0,9.999e-05,2]
[347617435,1735960233601,-414.81249581,9.999e-05,2]
[347617436,1735960233611,-203.26248316,9.999e-05,2]
[347617437,1735960233620,-500.0,9.999e-05,2]
[347617438,1735960233630,-822.49,9.999e-05,2]
[347617439,1735960233639,-5225.6,9.999e-05,2]
[347617440,1735960233648,-888.23,9.999e-05,2]
[347617441,1735960233658,-500.0,9.999e-05,2]
[347617442,1735960233669,-500.0,9.999e-05,2]
[347617443,1735960233679,-500.0,9.999e-05,2]
[347617444,1735960233689,-500.0,9.999e-05,2]
[347617445,1735960233698,-500.0,9.999e-05,2]
[347617446,1735960233708,-500.0,9.999e-05,2]
[347617447,1735960233718,-559.68,9.999e-05,2]
[347617448,1735960233727,-500.0,9.999e-05,2]
[347617449,1735960233737,-500.0,9.999e-05,2]
[347617450,1735960233747,-576.02,9.999e-05,2]
[347617451,1735960233757,-500.0,9.999e-05,2]
[347617452,1735960233766,-500.0,9.999e-05,2]
[347617453,1735960233776,-518.19,9.999e-05,2]
[347617454,1735960233785,-500.0,9.999e-05,2]
[347617455,1735960233795,-500.0,9.999e-05,2]
[347617456,1735960233804,-500.0,9.999e-05,2]
[347617457,1735960233813,-500.0,9.999e-05,2]
[347617458,1735960233823,-500.0,9.999e-05,2]
[347617459,1735960233833,-500.0,9.999e-05,2]
[347617460,1735960233842,-500.0,9.999e-05,2]
[347617461,1735960233852,-500.0,9.999e-05,2]
[347617462,1735960233861,-500.0,9.999e-05,2]
[347617463,1735960233871,-500.0,9.999e-05,2]
[347617464,1735960233880,-564.3414876,9.999e-05,2]
[347617465,1735960233890,-505.00648925,9.999e-05,2]
[347617466,1735960233899,-534.93,9.999e-05,2]
[347617467,1735960233909,-500.0,9.999e-05,2]
[347617468,1735960233919,-500.0,9.999e-05,2]
[347617469,1735960233930,-500.0,9.999e-05,2]
[347617470,1735960233939,-36.2641403,9.999e-05,2]
[347617471,1735960233955,-463.7358597,9.999e-05,2]
[347617472,1735960233964,-505.6,9.999e-05,2]
[347617473,1735960233975,-500.0,9.999e-05,2]
[347617474,1735960233984,-500.0,9.999e-05,2]
[347617475,1735960233994,-629.12,9.999e-05,2]
[347617476,1735960234004,-500.0,9.999e-05,2]
[347617477,1735960234014,-546.48,9.999e-05,2]
[347617478,1735960234023,-500.0,9.999e-05,2]
[347617479,1735960234033,-500.0,9.999e-05,2]
[347617480,1735960234042,-500.0,9.999e-05,2]
[347617481,1735960234052,-500.0,9.999e-05,2]
[347617482,1735960234062,-556.22,9.999e-05,2]
[347617483,1735960234072,-500.0,9.999e-05,2]
[347617484,1735960234082,-500.0,9.999e-05,2]
[347617485,1735960234091,-500.0,9.999e-05,2]
[347617486,1735960234101,-500.0,9.999e-05,2]
[347617487,1735960234111,-500.0,9.999e-05,2]
[347617488,1735960234120,-500.0,9.999e-05,2]
[347617489,1735960234131,-30.40411198,9.999e-05,2]
[347617490,1735960234143,-449.32685517,9.999e-05,2]
[347617491,1735960234155,-20.26903285,9.999e-05,2]
[347617492,1735960234164,-279.72096715,9.999e-05,2]
[347617493,1735960234183,-220.27903285,9.999e-05,2]
[347617494,1735960234193,-500.0,9.999e-05,2]
[347617495,1735960234205,-714.8,9.999e-05,2]
[347617496,1735960234222,-220.28824764,9.999e-05,2]
[347617497,1735960234232,-500.0,9.999e-05,2]
[347617498,1735960234242,-500.0,9.999e-05,2]
[347617499,1735960234252,-500.0,9.999e-05,2]
[347617500,1735960234262,-876.31,9.999e-05,2]
[347617501,1735960234273,-500.0,9.999e-05,2]
[347617502,1735960234282,-846.78,9.999e-05,2]
[347617503,1735960234292,-500.0,9.999e-05,2]
[347617504,1735960234302,-500.0,9.999e-05,2]
[347617505,1735960234312,-609.55,9.999e-05,2]
[347617506,1735960234322,-500.0,9.999e-05,2]
[347617507,1735960234331,-683.13,9.999e-05,2]
[347617508,1735960234342,-500.0,9.999e-05,2]
[347617509,1735960234352,-500.0,9.999e-05,2]
[347617510,1735960234362,-3017.9,9.999e-05,2]
[347617511,1735960234372,-500.0,9.999e-05,2]
[347617512,1735960234382,-500.0,9.999e-05,2]
[347617513,1735960234392,-735.15,9.999e-05,2]
[347617514,1735960234402,-500.0,9.999e-05,2]
[347617515,1735960234413,-500.0,9.999e-05,2]
[347617516,1735960234423,-500.0,9.999e-05,2]
[347617517,1735960234433,-500.0,9.999e-05,2]
[347617518,1735960234443,-500.0,9.999e-05,2]
[347617519,1735960234453,-500.0,9.999e-05,2]
[347617520,1735960234463,-500.0,9.999e-05,2]
[347617521,1735960234474,-757.42,9.999e-05,2]
[347617522,1735960234484,-500.0,9.999e-05,2]
[347617523,1735960234495,-500.0,9.999e-05,2]
[347617524,1735960234506,-1193.48,9.999e-05,2]
[347617525,1735960234516,-500.0,9.999e-05,2]
[347617526,1735960234526,-617.97,9.999e-05,2]
[347617527,1735960234537,-500.0,9.999e-05,2]
[347617528,1735960234547,-1039.38,9.999e-05,2]
[347617529,1735960234556,-500.0,9.999e-05,2]
[347617530,1735960234566,-500.0,9.999e-05,2]
[347617531,1735960234577,-834.46,9.999e-05,2]
[347617532,1735960234586,-500.0,9.999e-05,2]
[347617533,1735960234596,-1624.54,9.999e-05,2]
[347617534,1735960234605,-944.81,9.999e-05,2]
[347617535,1735960234615,-2358.91,9.999e-05,2]
[347617536,1735960234625,-543.75,9.999e-05,2]
[347617537,1735960234634,-500.0,9.999e-05,2]
[347617538,1735960234644,-500.0,9.999e-05,2]
[347617539,1735960234654,-500.0,9.999e-05,2]
[347617540,1735960234664,-500.0,9.999e-05,2]
[347617541,1735960234675,-462.90951389,9.999e-05,2]
[347617542,1735960234684,-749.13,9.999e-05,2]
[347617543,1735960234694,-500.0,9.999e-05,2]
[347617544,1735960234704,-971.7,9.999e-05,2]
[347617545,1735960234713,-500.0,9.999e-05,2]
[347617546,1735960234723,-500.0,9.999e-05,2]
[347617547,1735960234733,-500.0,9.999e-05,2]
[347617548,1735960234743,-853.63,9.999e-05,2]
[347617549,1735960234752,-500.0,9.999e-05,2]
[347617550,1735960234762,-500.0,9.999e-05,2]
[347617551,1735960234771,-500.0,9.999e-05,2]
[347617552,1735960234780,-500.0,9.999e-05,2]
[347617553,1735960234790,-902.73,9.999e-05,2]
[347617554,1735960234800,-1133.14,9.999e-05,2]
[347617555,1735960234809,-500.0,9.999e-05,2]
[347617556,1735960234818,-648.77,9.999e-05,2]
[347617557,1735960234828,-599.43,9.999e-05,2]
[347617558,1735960234837,-754.23,9.999e-05,2]
[347617559,1735960234847,-500.0,9.999e-05,2]
[347617560,1735960234856,-500.0,9.999e-05,2]
[347617561,1735960234865,-500.0,9.999e-05,2]
[347617562,1735960234875,-500.0,9.999e-05,2]
[347617563,1735960234886,-2815.59,9.999e-05,2]
[347617564,1735960234895,-500.0,9.999e-05,2]
[347617565,1735960234905,-588.91,9.999e-05,2]
[347617566,1735960234914,-961.4,9.999e-05,2]
[347617567,1735960234924,-500.0,9.999e-05,2]
[347617568,1735960234934,-852.89,9.999e-05,2]
[347617569,1735960234943,-500.0,9.999e-05,2]
[347617570,1735960234952,-500.0,9.999e-05,2]
[347617571,1735960234962,-684.4,9.999e-05,2]
[347617572,1735960234971,-2633.06,9.999e-05,2]
[347617573,1735960234981,-500.0,9.999e-05,2]
[347617574,1735960234990,-530.24,9.999e-05,2]
[347617575,1735960235000,-500.0,9.999e-05,2]
[347617576,1735960235009,-1077.12,9.999e-05,2]
[347617577,1735960235019,-500.0,9.999e-05,2]
[347617578,1735960235028,-500.0,9.999e-05,2]
[347617579,1735960235038,-596.79,9.999e-05,2]
[347617580,1735960235047,-500.0,9.999e-05,2]
[347617581,1735960235056,-500.0,9.999e-05,2]
[347617582,1735960235067,-500.0,9.999e-05,2]
[347617583,1735960235077,-500.0,9.999e-05,2]
[347617584,1735960235086,-1604.7,9.999e-05,2]
[347617585,1735960235096,-960.5,9.999e-05,2]
[347617586,1735960235105,-500.0,9.999e-05,2]
[347617587,1735960235114,-500.0,9.999e-05,2]
[347617588,1735960235123,-500.0,9.999e-05,2]
[347617589,1735960235133,-2010.98,9.999e-05,2]
[347617590,1735960235143,-500.0,9.999e-05,2]
[347617591,1735960235152,-500.0,9.999e-05,2]
[347617592,1735960235161,-500.0,9.999e-05,2]
[347617593,1735960235172,-500.0,9.999e-05,2]
[347617594,1735960235184,-292.22,9.999e-05,2]
[347617595,1735960235193,-500.0,9.999e-05,2]
[347617596,1735960235203,-500.0,9.999e-05,2]
[347617597,1735960235212,-2475.17,9.999e-05,2]
[347617598,1735960235222,-2937.49,9.999e-05,2]
[347617599,1735960235231,-500.0,9.999e-05,2]
[347617600,1735960235240,-500.0,9.999e-05,2]
[347617601,1735960235252,-480.87,9.999e-05,2]
[347617602,1735960235261,-364.17048841,9.999e-05,2]
[347617603,1735960235270,-500.0,9.999e-05,2]
[347617604,1735960235279,-1300.11,9.999e-05,2]
[347617605,1735960235289,-500.0,9.999e-05,2]
[347617606,1735960235299,-500.0,9.999e-05,2]
[347617607,1735960235309,-500.0,9.999e-05,2]
[347617608,1735960235318,-666.04,9.999e-05,2]
[347617609,1735960235328,-500.0,9.999e-05,2]
[347617610,1735960235337,-500.0,9.999e-05,2]
[347617611,1735960235347,-7603.69,9.999e-05,2]
[347617612,1735960235356,-621.27,9.999e-05,2]
[347617613,1735960235365,-1406.09,9.999e-05,2]
[347617614,1735960235376,-500.0,9.999e-05,2]
[347617615,1735960235385,-500.0,9.999e-05,2]
[347617616,1735960235394,-500.0,9.999e-05,2]
[347617617,1735960235403,-500.0,9.999e-05,2]
[347617618,1735960235413,-336.32646991,9.999e-05,2]
[347617619,1735960235424,-501.07831973,9.999e-05,2]
[347617620,1735960235434,-1726.22,9.999e-05,2]
[347617621,1735960235443,-500.0,9.999e-05,2]
[347617622,1735960235453,-358.78544354,9.999e-05,2]
[347617623,1735960235462,-500.0,9.999e-05,2]
[347617624,1735960235471,-212.17447025,9.999e-05,2]
[347617625,1735960235481,-500.0,9.999e-05,2]
[347617626,1735960235490,-500.0,9.999e-05,2]
[347617627,1735960235499,-522.6,9.999e-05,2]
[347617628,1735960235509,-500.0,9.999e-05,2]
[347617629,1735960235519,-583.64460081,9.999e-05,2]
[347617630,1735960235528,-106906.44567385,0.0001,2]
[347617631,1735960235969,-1179.80252634,0.0001,2]
[347617632,1735960235981,-2059.90069911,0.0001,2]
[347617633,1735960235992,-385.90652593,0.0001,2]
[347617634,1735960236003,-1553.5356151,0.0001,2]
[347617635,1735960236013,-574.19833855,0.0001,2]
[347617642,1735960238264,-1260.63,9.999e-05,2]
[347617643,1735960238274,-525.74,9.999e-05,2]
[347617644,1735960238283,-11489.9253892,0.0001,2]
[347617645,1735960238432,-327311.78004346,0.0001,2]
[347617646,1735960238443,-594.69383477,0.0001,2]
[347617647,1735960238600,-246910.91292197,0.0001,2]
[347617648,1735960238612,-496.99999,0.0001,2]
[347617649,1735960238623,-7525.0,0.0001,2]
[347617650,1735960238634,-44464.33231153,0.0001,2]
[347617651,1735960238645,-1045.75970181,0.0001,2]
[347617665,1735960240366,-500.0,9.999e-05,2]
[347617666,1735960240376,-500.0,9.999e-05,2]
[347617667,1735960240385,-2000.84839263,0.0001,2]
[347617668,1735960240545,-12100.4134,0.0001,2]
[347617669,1735960240556,-2250.02920426,0.0001,2]
[347617670,1735960240567,-10174.97859392,0.0001,2]
[347617671,1735960240579,-148117.36045559,0.0001,2]
[347617672,1735960240590,-13205.76847675,0.0001,2]
[347617673,1735960240601,-500.0,0.0001,2]
[347617674,1735960240726,-1745.34898315,0.0001,2]
[347617675,1735960240739,-2768.10488298,0.0001,2]
[347617676,1735960243439,-500.0,9.999e-05,2]
[347617677,1735960243448,-347.28580512,9.999e-05,2]
[347617678,1735960243458,-1099.73080494,9.999e-05,2]
[347617679,1735960243469,-283.19923601,9.999e-05,2]
[347617680,1735960243481,-2982.25995905,9.999e-05,2]
[347617681,1735960243490,-500.0,9.999e-05,2]
[347617682,1735960243499,-29857.73629617,0.0001,2]
[347617683,1735960243619,-451.88977681,0.0001,2]
[347617684,1735960243630,-433.3900625,0.0001,2]
[347617685,1735960243641,-2074.85937241,0.0001,2]
[347617687,1735960246322,-183.35,9.999e-05,2]
[347617688,1735960246333,-500.0,9.999e-05,2]
[347617689,1735960246342,-9852.32369397,0.0001,2]
[347617690,1735960246354,-707.22310457,0.0001,2]
[347617691,1735960246365,-4841.79727168,0.0001,2]
[347617692,1735960246377,-2024.8765447,0.0001,2]
[347617693,1735960246389,-634.05632581,0.0001,2]
[347617694,1735960246400,-33484.42317614,0.0001,2]
[347617695,1735960246445,-318.30043986,0.0001,2]
[347617696,1735960246456,-3406.57868877,0.0001,2]
[347617697,1735960246467,-622.15636844,0.0001,2]
[347617698,1735960246478,-596.0883274,0.0001,2]
[347617699,1735960246596,-281.0,0.0001,2]
[347617700,1735960246607,-3866.95395125,0.0001,2]
[347617730,1735961432474,-449.96,8.219e-05,2]
[347617731,1735961432484,-242.04080465,8.801e-05,7]
[347617732,1735961432493,-199.00466403,9.033e-05,2]
[347617734,1735961432506,-100.99533597,9.033e-05,2]
[347617736,1735961432515,-2244.70467323,9.034e-05,2]
[347617738,1735961432527,-531.65387139,9.034e-05,2]
[347617740,1735961432539,-1706.8058045,9.034e-05,2]
[347617742,1735961432550,-19416.83565088,9.034e-05,2]
[347617744,1735961432561,-165.03,9.149e-05,2]
[347617745,1735961432571,-250.0,9.177e-05,2]
[347617746,1735961432580,-1069.92,9.251e-05,2]
[347617747,1735961432591,-386.67,9.318e-05,2]
[347617748,1735961432600,-250.0,9.421e-05,2]
[347617749,1735961432610,-250.0,9.506e-05,2]
[347617750,1735961432619,-1000.0,9.524e-05,2]
[347617751,1735961432631,-168.56,9.591e-05,2]
[347617752,1735961432642,-402.19,9.597e-05,2]
[347617753,1735961432652,-763.74,9.678e-05,2]
[347617754,1735961432662,-262.31,9.678e-05,2]
[347617755,1735961432671,-105.51052522,9.699e-05,2]
[347617756,1735961432702,-58.58947478,9.699e-05,2]
[347617757,1735961432713,-3885.906,9.8e-05,2]
[347617758,1735961432723,-190.347,9.8e-05,2]
[347617759,1735961432732,-300.0,9.9e-05,3]
[347617760,1735961432743,-49587.39,9.9e-05,2]
[347617761,1735961432752,-420.0,9.936e-05,2]
[347617762,1735961432762,-500.0,9.973e-05,2]
[347617763,1735961432771,-372.28215808,9.998e-05,2]
[347617764,1735961432782,-814.4,9.998e-05,2]
[347617765,1735961432791,-500.0,9.998e-05,2]
[347617766,1735961432801,-655.77,9.998e-05,2]
[347617767,1735961432811,-2892.16,9.998e-05,2]
[347617768,1735961432821,-500.0,9.998e-05,2]
[347617770,1735961432830,-1143.75,9.998e-05,2]
[347617772,1735961432840,-1556.85,9.998e-05,2]
[347617774,1735961432850,-818.06,9.998e-05,2]
[347617776,1735961432860,-500.0,9.998e-05,2]
[347617777,1735961432870,-500.0,9.998e-05,2]
[347617778,1735961432880,-865.11,9.998e-05,2]
[347617779,1735961432890,-500.0,9.998e-05,2]
[347617780,1735961432899,-574.45,9.998e-05,2]
[347617781,1735961432909,-817.35,9.998e-05,2]
[347617782,1735961432918,-1032.24,9.998e-05,2]
[347617783,1735961432928,-655.89,9.998e-05,2]
[347617784,1735961432937,-508.02646208,9.998e-05,2]
[347617785,1735961432946,-500.0,9.998e-05,2]
[347617786,1735961432956,-248.5662562,9.998e-05,2]
[347617787,1735961432966,-638.29,9.998e-05,2]
[347617788,1735961432976,-494.75,9.999e-05,2]
[347617789,1735961432985,-465.5515,9.999e-05,2]
[347617790,1735961432999,-500.0,9.999e-05,2]
[347617791,1735961433008,-500.0,9.999e-05,2]
[347617792,1735961433018,-340.738476,9.999e-05,2]
[347617793,1735961433027,-500.0,9.999e-05,2]
[347617794,1735961433037,-500.0,9.999e-05,2]
[347617795,1735961433047,-254.211599,9.999e-05,2]
[347617796,1735961433057,-500.0,9.999e-05,2]
[347617797,1735961433066,-500.0,9.999e-05,2]
[347617798,1735961433075,-500.0,9.999e-05,2]
[347617799,1735961433085,-500.0,9.999e-05,2]
[347617800,1735961433095,-500.0,9.999e-05,2]
[347617801,1735961433104,-500.0,9.999e-05,2]